Cogmind - Beta 16.1 @@@ ROGUE MODE // 2026.03.09 @ 19:33:14 Player: robotix Result: Destroyed by S-27 Virus with Autogun Performance ------------- Evolutions (4) 2000 Regions Visited (10) 2000 Robots Destroyed (87) 435 Value Destroyed (2510) 2510 Prototype IDs (38) 760 Alien Tech Used (0) 0 Bonus (585) 585 TOTAL SCORE: 8290 Bonus ------- Follower Combat Kills 85 Entered Garrisons 200 Aligned with FarCom 300 Cogmind --------- Core Integrity 0/850 Matter 42/300 Energy 39/100 System Corruption 4% Temperature Cool (0) Movement Core (50) Location -6/Factory Parts ------- > --- POWER (2) -------- (None) > --- PROPULSION (4) --- (None) > --- UTILITY (6) ------ Advanced Visual Processing Unit Target Analyzer Authchip [R/Combat] > --- WEAPON (3) ------- (None) > --- INVENTORY (5) ---- Hacking Suite Authchip [R/Combat] Relay Coupler [Demolisher] (17) Remote Datajack Peak State ------------ > --- POWER ------------ Improved Deuterium Engine Fission Core > --- PROPULSION ------- Improved Titanium Leg Improved Titanium Leg Improved Titanium Leg Improved Titanium Leg > --- UTILITY ---------- Improved Heat Sink Medium Storage Unit Advanced Visual Processing Unit Target Analyzer Improved Core Shielding Authchip [R/Combat] > --- WEAPON ----------- Pulse Rifle Gatling Laser Remote Datajack > --- INVENTORY -------- Energy Well Experimental Sensor Array Hacking Suite Authchip [R/Combat] Relay Coupler [Duelist] Relay Coupler [Demolisher] Relay Coupler [Specialist] Improved EM Pulse Cannon Plasma Cannon Mini Grenade Launcher [Rating: 59] Favorites ----------- Power Ion Engine Engine Ion Engine Power Core Micro Nuclear Core Propulsion Aluminum Leg Leg Aluminum Leg Hover Unit Gravmag System Utility Medium Storage Unit Device Improved Heat Sink Storage Medium Storage Unit Processor Target Analyzer Hackware Authchip [R/Combat] Protection Propulsion Shielding Weapon Assault Rifle Energy Gun Lightning Gun Energy Cannon Improved EM Pulse Cannon Ballistic Gun Assault Rifle Launcher Shock Bomb Launcher Special Weapon Remote Datajack Special Melee Weapon Datajack Build | -11 -10 -10 -10 -9 -8 -8 -7 -7 -7 -6 ------- Run | Yrd Mat Min Exi Min Mat Gar Fac Was Fac Fac Slots Evolved 8 | . . . . . 4 . 2 . . 2 Power 1 | . . . . . . . 1 . . . Propulsion 2 | . . . . . 2 . . . . . Utility 4 | . . . . . 2 . 1 . . 1 Weapon 1 | . . . . . . . . . . 1 Parts Attached 72 | 6 3 2 2 1 8 17 14 3 10 6 Power 10 | 1 . . . . 1 1 3 . 3 1 Engine 6 | 1 . . . . 1 1 1 . 2 . Core 4 | . . . . . . . 2 . 1 1 Reactor . | . . . . . . . . . . . Propulsion 20 | 2 . 1 . . 1 6 6 . 4 . Treads . | . . . . . . . . . . . Leg 14 | 2 . 1 . . 1 2 4 . 4 . Wheel . | . . . . . . . . . . . Hover 6 | . . . . . . 4 2 . . . Flight . | . . . . . . . . . . . Utility 20 | 1 1 1 1 . 3 6 2 . 2 3 Device 10 | . 1 1 . . 1 3 2 . 1 1 Storage 3 | 1 . . 1 . . . . . . 1 Processor 3 | . . . . . 1 1 . . 1 . Hackware 1 | . . . . . . 1 . . . . Protection 3 | . . . . . 1 1 . . . 1 Artifact . | . . . . . . . . . . . Weapon 22 | 2 2 . 1 1 3 4 3 3 1 2 Energy Gun 10 | . 1 . . . 2 3 1 2 1 . Energy Cannon 2 | . . . . . . . 1 . . 1 Ballistic Gun 5 | 2 . . . 1 . 1 1 . . . Ballistic Cannon . | . . . . . . . . . . . Launcher 3 | . 1 . . . 1 . . . . 1 Special Weapon 1 | . . . . . . . . 1 . . Impact Weapon . | . . . . . . . . . . . Slashing Weapon . | . . . . . . . . . . . Piercing Weapon . | . . . . . . . . . . . Special Melee Weapon 1 | . . . 1 . . . . . . . Unidentified Prototypes 1 | . . 1 . . . . . . . . Corrupted Parts 4 | . . . . . . 4 . . . . System Corruption 28 | . . . . . . 28 . . . . Parts Lost 34 | . . 1 . . . 17 . 3 . 13 Power 3 | . . . . . . 1 . . . 2 Propulsion 12 | . . 1 . . . 6 . 1 . 4 Utility 8 | . . . . . . 4 . 1 . 3 Weapon 11 | . . . . . . 6 . 1 . 4 Highest Loss Streak 10 | . . 1 . . . 10 . 3 . 9 To Critical Strikes . | . . . . . . . . . . . Average Backups 8 | . 5 7 6 8 8 9 9 10 10 9 Power . | . . . . . . . . . . . Propulsion . | . . . . . . . . . . . Utility 4 | . 1 2 2 3 3 4 6 7 6 6 Weapon 2 | . 2 2 2 2 3 2 1 2 2 2 Tool/Special . | . . . . . . . . . . . Unused Backups 20 | . . 4 1 . 3 3 4 . . 5 Power 2 | . . 1 . . 1 . . . . . Propulsion . | . . . . . . . . . . . Utility 11 | . . 1 1 . . 2 2 . . 5 Weapon 5 | . . 2 . . 1 1 1 . . . Tool/Special 2 | . . . . . 1 . 1 . . . Average Slot Usage (%) 88 | . 89 99 85 98 80 69 97 74 87 91 Engine 9 | . 14 14 14 14 9 8 6 3 6 6 Core 1 | . . . . . . . 6 4 . 3 Leg 24 | . 28 27 28 28 22 15 23 20 28 24 Hover 1 | . . . . . . 1 6 . . . Device 10 | . 4 14 14 14 12 7 14 11 7 6 Storage 9 | . 14 14 14 14 9 9 7 7 7 6 Processor 5 | . . . . . 2 2 7 7 14 13 Hackware 3 | . . . . . . 3 7 7 7 6 Protection 1 | . . . . . 6 5 . . . 4 Energy Gun 6 | . 6 4 . . 12 9 3 4 10 11 Energy Cannon 1 | . . . . . . . 4 3 . . Ballistic Gun 7 | . 16 23 3 26 5 1 4 . . . Launcher 1 | . 5 . . . . 3 . . . . Peak Build Rating 59 | 6 9 16 11 13 34 34 52 52 49 59 Average Rating 29 | 5 6 9 10 12 24 23 47 36 43 53 On Entrance 20 | . 6 9 11 11 13 28 31 48 18 49 Avg Prop Armor Cover (%) 9 | . . . . . . 9 6 . 14 6 Naked Turns . | . . . . . . . . . . . Heaviest Build 46 | 14 15 15 17 21 37 43 39 46 38 44 Greatest Support 75 | 20 20 20 20 20 35 35 65 65 75 60 Greatest Overweight (x) 9 | . . . . 1 3 9 1 . . 1 Average Overweight (x) . | . . . . . . 1 . . . . Largest Inventory Capacity 10 | 8 8 8 10 10 10 10 10 10 10 10 Average Capacity 9 | 7 8 8 8 10 10 10 10 10 10 9 Most Carried 10 | 5 8 8 8 10 10 10 10 10 10 10 Average Carried 8 | . 5 7 7 9 9 9 9 10 9 9 Final Capacity 10 | 8 8 8 10 10 10 10 10 10 10 5 Final Carried 10 | 1 8 8 8 10 10 10 10 10 10 4 Class Distribution -------------------- 57% | Mutant 22% | Skirmisher 13% | Scavenger-Mutant 4% | Scavenger-Skirmisher Dominant Class ---------------- Mutant | -10/Materials Mutant | -10/Mines Mutant | -10/Exiles Skirmisher | -9/Mines Skirmisher | -8/Materials Mutant | -8/Garrison Scavenger-Mutant | -7/Factory Scavenger-Mutant | -7/Waste Mutant | -7/Factory Skirmisher | -6/Factory Resources | -11 -10 -10 -10 -9 -8 -8 -7 -7 -7 -6 ----------- Run | Yrd Mat Min Exi Min Mat Gar Fac Was Fac Fac Matter Collected 1996 | 392 256 156 . 80 140 384 273 . 258 57 Remotely . | . . . . . . . . . . . Salvage Created 2613 | 214 421 330 . . 213 555 410 . 299 171 Parts 160 | 14 45 30 . . 9 26 19 . 10 7 Haulers Intercepted 3 | . 1 . . . . . 1 . 1 . Recyclers Shooed 6 | . . 2 . . . . . . 1 3 Parts Field Recycled . | . . . . . . . . . . . Retrieved Matter . | . . . . . . . . . . . Parts Self-Destructed . | . . . . . . . . . . . Prevented . | . . . . . . . . . . . Parts Restored . | . . . . . . . . . . . Kills | -11 -10 -10 -10 -9 -8 -8 -7 -7 -7 -6 ------- Run | Yrd Mat Min Exi Min Mat Gar Fac Was Fac Fac Combat Hostiles Destroyed 52 | . 10 12 . . 3 13 6 . 2 6 Guns 30 | . 5 12 . . 3 7 1 . 2 . Cannons 4 | . . . . . . . 3 . . 1 AOE 15 | . 5 . . . . 4 2 . . 4 Classes Destroyed 14 | 3 6 . . . 2 2 . . . 1 Worker 7 | 2 1 3 . . . . . . . 1 Builder 6 | . 5 . . . . . 1 . . . Tunneler 6 | 5 . . . . . . . . 1 . Hauler 3 | . 1 . . . . . 1 . 1 . Recycler 7 | 1 1 1 . . . . 2 . 2 . Operator 2 | . 2 . . . . . . . . . Watcher 4 | . 1 . . . 1 . . . . 2 Swarmer 22 | . 6 12 . . . 4 . . . . Grunt 15 | . 4 . . . . 5 3 . . 3 Brawler 2 | . . . . . . 1 . . . 1 Sentry 2 | . . . . . 2 . . . . . Hunter 2 | . . . . . 1 . 1 . . . Programmer 8 | . . . . . . 3 2 . 2 1 Heavy 1 | . . . . . . . . . . 1 Best Kill Streak 10 | 5 10 7 . . 3 4 5 . 2 6 Combat Bots Only 5 | . 5 3 . . 3 4 3 . 1 4 Max Kills in Single Turn 4 | 2 4 1 . . 1 2 4 . 1 2 Gunslinging . | . . . . . . . . . . . Exploded 3 | . 3 . . . . 2 2 . . 2 Melee . | . . . . . . . . . . . Uniques/NPCs Destroyed . | . . . . . . . . . . . Combat | -11 -10 -10 -10 -9 -8 -8 -7 -7 -7 -6 -------- Run | Yrd Mat Min Exi Min Mat Gar Fac Was Fac Fac Hostile Shots Fired 402 | . 33 26 . 1 24 135 26 3 20 134 Missed 86 | . 6 9 . 1 5 22 7 . 3 33 Hits 316 | . 27 17 . . 19 113 19 3 17 101 Melee 7 | . . . . . . 4 . 3 . . Projectile 309 | . 27 17 . . 19 109 19 . 17 101 AOE 1 | . . . . . . . . . . 1 Critical Strikes 18 | . 1 . . . 1 6 1 3 2 4 Actively Blocked 4 | . . . . . . 2 . . . 2 Part Disruptions 1 | . . . . . . . . . 1 . Damage Taken 5275 | . 263 175 . . 190 1775 283 140 251 2198 Core 1685 | . 40 76 . . 48 490 87 90 . 854 Absorbed by Shields 120 | . . . . . . 120 . . . . Redirected to Shielding 167 | . . . . . 20 45 . . . 102 Core Remaining (%) 57 | 100 . . . 53 . 2 . . 74 . Volleys Fired 283 | 22 53 27 . 1 10 77 21 2 21 49 Largest 2 | 2 2 2 . 2 2 2 2 2 2 2 Hottest 160 | 40 60 60 . 43 110 110 97 118 143 160 Shots Fired 415 | 44 78 54 . 2 20 91 31 4 31 60 Gun 338 | 44 72 54 . 2 20 78 17 2 26 23 Cannon 35 | . . . . . . . 14 1 . 20 Launcher 32 | . 6 . . . . 13 . . . 13 Special 10 | . . . . . . . . 1 5 4 Kinetic 160 | 44 53 34 . 2 . 10 17 . . . Thermal 85 | . . . . . . 16 . 1 26 42 Explosive 19 | . 6 . . . . . . . . 13 Electromagnetic 141 | . 19 20 . . 20 65 14 2 . 1 Robot Hit Streak 17 | 9 10 4 . 1 9 12 8 7 5 17 Robot Miss Streak 5 | 2 5 3 . 2 1 4 4 1 5 5 Penetration Max . | . . . . . . . . . . . Secondary Targets 3 | . . 1 . . 1 1 . . . . Max Gunslinging Chain 1 | . . 1 . . 1 1 . . . . Shots Hit Robots 246 | 26 41 27 4 1 16 41 24 3 20 43 Core Hits 142 | 9 28 18 . . 6 23 20 1 12 25 Critical Kills 1 | . . . . . . 1 . . . . Critical Parts Destroyed 1 | . 1 . . . . . . . . . Critical Strikes 5 | . 1 . . . 1 1 . 1 1 . Burn 2 | . . . . . . . . 1 1 . Destroy 2 | . 1 . . . . 1 . . . . Corrupt 1 | . . . . . 1 . . . . . Melee Attacks 4 | . . . 4 . . . . . . . Impact . | . . . . . . . . . . . Slashing . | . . . . . . . . . . . Piercing . | . . . . . . . . . . . Sneak Attacks 4 | . . . 4 . . . . . . . Combat Hostiles . | . . . . . . . . . . . Follow-up Attacks . | . . . . . . . . . . . Damage Inflicted 6565 | 354 999 335 . 12 334 1116 999 20 401 1995 Guns 3445 | 354 527 306 . 12 334 643 361 18 401 489 Cannons 514 | . . . . . . . 145 2 . 367 Explosions 2600 | . 472 29 . . . 473 493 . . 1133 Melee . | . . . . . . . . . . . Ramming 6 | . . . . . . . . . . 6 Kinetic 1435 | 354 399 154 . 12 . 155 361 . . . Thermal 2614 | . . 29 . . . 434 493 17 401 1240 Explosive 1196 | . 472 . . . . . . . . 724 Electromagnetic 1314 | . 128 152 . . 334 527 145 3 . 25 Impact . | . . . . . . . . . . . Slashing . | . . . . . . . . . . . Piercing . | . . . . . . . . . . . Highest Corruption 43 | . 2 2 2 2 . 43 1 21 23 4 Average Corruption 8 | . 1 2 2 2 . 16 1 9 21 3 Corruption Purged . | . . . . . . . . . . . Corruption Blocked . | . . . . . . . . . . . Effects 135 | . 6 10 4 13 . 42 5 8 44 3 Message Errors 36 | . 3 5 1 4 . 11 2 1 9 . Matter Fused 32 | . 1 1 1 4 . 14 . 3 7 1 Heat Flow Errors 15 | . 1 1 . 3 . 5 . 1 4 . Energy Discharges 12 | . 1 . 1 1 . 3 1 . 5 . Parts Rejected 4 | . . . . . . 1 . 1 1 1 Parts Fused 1 | . . . . . . . . . 1 . Data Loss (minor) 17 | . . 2 1 . . 4 1 . 9 . Data Loss (major) 3 | . . . . 1 . . . . 2 . Misfires 5 | . . . . . . . . 1 3 1 Alerts 5 | . . 1 . . . 2 1 . 1 . Misdirections 4 | . . . . . . 1 . 1 2 . Weapon Failures 1 | . . . . . . 1 . . . . Overload Shots . | . . . . . . . . . . . Overflow Damage 319 | . 30 . . . . 55 126 . . 108 Projectiles 31 | . . . . . . . . . . 31 Explosions 288 | . 30 . . . . 55 126 . . 77 Melee . | . . . . . . . . . . . Knockbacks . | . . . . . . . . . . . Impact . | . . . . . . . . . . . Kinetic . | . . . . . . . . . . . Secondary . | . . . . . . . . . . . Self-Inflicted Damage 277 | . . 38 . . . 196 . . . 43 Shots 11 | . . 1 . . . 9 . . . 1 Rammed . | . . . . . . . . . . . Targets Rammed 2 | . . . . . . . . . . 2 Kicked 2 | . . . . . . . . . . 2 Crushed . | . . . . . . . . . . . Highest Temperature 424 | . 177 135 . 270 242 424 56 228 267 251 Average Temperature 125 | . 42 54 . 117 128 199 28 85 78 119 Received Heat Transfer 756 | . 78 . . . 45 522 45 . . 66 Effects 2 | . . . . . . 2 . . . . Shutdowns 1 | . . . . . . 1 . . . . Interference 1 | . . . . . . 1 . . . . Siege Activations . | . . . . . . . . . . . Martial Activations . | . . . . . . . . . . . Shielding Activations . | . . . . . . . . . . . Robots Disrupted 1 | . . . . . 1 . . . . . Combat Hostiles 1 | . . . . . 1 . . . . . Robots Corrupted 3 | . . . . . 1 2 . . . . Combat Hostiles 2 | . . . . . . 2 . . . . Parts Fried 8 | . 2 . . . 4 2 . . . . Impact Corruptions . | . . . . . . . . . . . Robots Melted 1 | . . . . . . . . . . 1 Combat Hostiles 1 | . . . . . . . . . . 1 Parts Melted 6 | . . . . . . 1 . . 5 . Heat Transferred 4188 | . . 50 . . . 657 400 111 885 2085 Parts Sabotaged . | . . . . . . . . . . . Parts Stolen . | . . . . . . . . . . . Parts Stripped . | . . . . . . . . . . . Power Chain Reactions 4 | . . 1 . . . 3 . . . . Alert | -11 -10 -10 -10 -9 -8 -8 -7 -7 -7 -6 ------- Run | Yrd Mat Min Exi Min Mat Gar Fac Was Fac Fac Maximum Alert Level 1 | . . 1 . . . 1 . . . 1 Low Security (%) 88 | 100 100 96 . 100 100 39 100 100 100 84 Level 1 11 | . . 3 . . . 60 . . . 15 Level 2 . | . . . . . . . . . . . Level 3 . | . . . . . . . . . . . Level 4 . | . . . . . . . . . . . Level 5 . | . . . . . . . . . . . High Security . | . . . . . . . . . . . Max Security . | . . . . . . . . . . . Peak Influence 344 | 15 166 213 . 109 64 344 180 10 30 242 Initial 180 | . . 37 . . 7 33 180 10 . 5 Average 76 | 3 81 119 . 22 5 218 72 . 2 42 Influence Increases 2151 | 40 353 321 . 109 110 481 303 . 94 340 Destroy 0b10 Robot/C 1100 | . 200 240 . 60 60 260 120 . 40 120 Destroy 0b10 Robot/NC 180 | 40 55 20 . . 10 . 20 . 20 15 Destroy Leader 234 | . 54 40 . 10 34 10 30 . 22 34 Allied During Kill 10 | . . . . 8 2 . . . . . Successful Hack 62 | . 8 . . . 4 14 24 . 12 . Disable Machine 210 | . . . . 15 . . 90 . . 105 Anti-Garrison Action 100 | . . . . . . 100 . . . . Destroy Structure 210 | . 21 6 . 16 . 82 19 . . 66 Lose Combat Pursuer 45 | . 15 15 . . . 15 . . . . Influence Decreases 2011 | 40 257 387 30 88 79 189 616 31 82 212 Entered New Map 314 | . . 59 30 . 14 19 164 21 . 7 Time Decay 1367 | 40 257 318 . 88 45 . 452 10 82 75 Lost Part 310 | . . 10 . . . 170 . . . 130 Lost Ally 20 | . . . . . 20 . . . . . Squads Dispatched 9 | . 2 . . . 1 . 3 . 1 2 Investigation . | . . . . . . . . . . . Extermination 4 | . . . . . . . 2 . 1 1 Reinforcement 5 | . 2 . . . 1 . 1 . . 1 Assault . | . . . . . . . . . . . Garrison . | . . . . . . . . . . . Intercept . | . . . . . . . . . . . Searches Triggered . | . . . . . . . . . . . Construction Impeded 1 | . . . . . . . 1 . . . Haulers Reinforced . | . . . . . . . . . . . Active Scanning Responses . | . . . . . . . . . . . Cargo Convoy Interrupts . | . . . . . . . . . . . Stealth | -11 -10 -10 -10 -9 -8 -8 -7 -7 -7 -6 --------- Run | Yrd Mat Min Exi Min Mat Gar Fac Was Fac Fac Distress Signals 3 | . . . . . 2 . . . . 1 Communications Jammed . | . . . . . . . . . . . Distress Signals . | . . . . . . . . . . . Times Spotted 87 | . 22 12 . 3 5 15 5 6 5 14 Peak Tracking Total 7 | . 5 3 . 3 4 3 3 6 2 7 Tactical Retreats 3 | . 1 1 . . . 1 . . . . Traps | -11 -10 -10 -10 -9 -8 -8 -7 -7 -7 -6 ------- Run | Yrd Mat Min Exi Min Mat Gar Fac Was Fac Fac Traps Triggered 9 | . 2 . . . 2 4 1 . . . Indirectly . | . . . . . . . . . . . Trap Hack Attempts . | . . . . . . . . . . . Triggered . | . . . . . . . . . . . Disarmed . | . . . . . . . . . . . Reprogrammed . | . . . . . . . . . . . Reused . | . . . . . . . . . . . Traps Extracted . | . . . . . . . . . . . Installed . | . . . . . . . . . . . Triggered . | . . . . . . . . . . . Machines | -11 -10 -10 -10 -9 -8 -8 -7 -7 -7 -6 ---------- Run | Yrd Mat Min Exi Min Mat Gar Fac Was Fac Fac Machines Disabled 16 | . . . . 1 . 2 6 . . 7 Max in Single Turn 6 | . . . . . . 1 5 . . 6 Garrison Relay 2 | . . . . . . 2 . . . . Machines Repaired . | . . . . . . . . . . . Machines Dismantled . | . . . . . . . . . . . Machines Sabotaged . | . . . . . . . . . . . Overloaded Fab Kills . | . . . . . . . . . . . Hacking | -11 -10 -10 -10 -9 -8 -8 -7 -7 -7 -6 --------- Run | Yrd Mat Min Exi Min Mat Gar Fac Was Fac Fac Machines Accessed 21 | . 5 . 1 1 3 2 3 . 4 2 Terminals 12 | . 5 . . 1 1 2 1 . 1 1 Fabricators 2 | . . . . . . . 1 . 1 . Repair Stations 2 | . . . . . 1 . . . 1 . Recycling Units . | . . . . . . . . . . . Scanalyzers 2 | . . . . . . . 1 . . 1 Garrison Access 2 | . . . . . 1 . . . 1 . Total Hacks 48 | . 19 . 1 3 8 4 5 . 4 4 Successful 22 | . 6 . 1 1 7 1 3 . 2 1 Failed 26 | . 13 . . 2 1 3 2 . 2 3 Catastrophic 4 | . 3 . . . . . . . . 1 Database Lockouts . | . . . . . . . . . . . Manual 1 | . . . 1 . . . . . . . Terminals 36 | . 19 . . 3 5 4 2 . 1 2 Fabricators 2 | . . . . . . . 1 . 1 . Repair Stations 3 | . . . . . 2 . . . 1 . Recycling Units . | . . . . . . . . . . . Scanalyzers 4 | . . . . . . . 2 . . 2 Garrison Access 2 | . . . . . 1 . . . 1 . Terminal Hacks 16 | . 6 . 1 1 5 1 1 . 1 . Record 4 | . 1 . . . 2 . . . 1 . Emergency Access Points 1 | . . . . . . 1 . . . . Terminal Index 1 | . 1 . . . . . . . . . Alert Level 1 | . . . . . 1 . . . . . Locate Traps 4 | . 2 . . . 1 . 1 . . . Dispatch Records 1 | . 1 . . . . . . . . . Investigation Status 1 | . . . . 1 . . . . . . Zone Layout 2 | . 1 . . . 1 . . . . . Proto ID Catalog 1 | . . . 1 . . . . . . . Fabricator Hacks 2 | . . . . . . . 1 . 1 . Network Status 2 | . . . . . . . 1 . 1 . Repair Station Hacks 1 | . . . . . 1 . . . . . Scan Component 1 | . . . . . 1 . . . . . Recycling Unit Hacks . | . . . . . . . . . . . Scanalyzer 2 | . . . . . . . 1 . . 1 Insert Component 2 | . . . . . . . 1 . . 1 Garrison Access Hacks 1 | . . . . . 1 . . . . . Unlock Access 1 | . . . . . 1 . . . . . Unauthorized Hacks . | . . . . . . . . . . . Terminals . | . . . . . . . . . . . Fabricators . | . . . . . . . . . . . Repair Stations . | . . . . . . . . . . . Recycling Units . | . . . . . . . . . . . Scanalyzers . | . . . . . . . . . . . Garrison Access . | . . . . . . . . . . . Data Cores Recovered . | . . . . . . . . . . . Used . | . . . . . . . . . . . Hacking Detections 18 | . 5 . . 1 2 2 3 . 3 2 Full Trace Events 1 | . 1 . . . . . . . . . Feedback Events . | . . . . . . . . . . . Feedback Blocked . | . . . . . . . . . . . Robot Schematics Acquired . | . . . . . . . . . . . Robots Built . | . . . . . . . . . . . Authchips . | . . . . . . . . . . . Time . | . . . . . . . . . . . Total Robot Build Rating . | . . . . . . . . . . . Part Schematics Acquired . | . . . . . . . . . . . Parts Built . | . . . . . . . . . . . Authchips . | . . . . . . . . . . . Time . | . . . . . . . . . . . Total Part Build Rating . | . . . . . . . . . . . Part Studies Acquired . | . . . . . . . . . . . Parts Repaired . | . . . . . . . . . . . Time . | . . . . . . . . . . . Parts Recycled . | . . . . . . . . . . . Recycled Matter . | . . . . . . . . . . . Retrieved Matter . | . . . . . . . . . . . Retrieved Components . | . . . . . . . . . . . Parts Scanalyzed . | . . . . . . . . . . . Part Schematics Acquired . | . . . . . . . . . . . Parts Damaged . | . . . . . . . . . . . Bothacking | -11 -10 -10 -10 -9 -8 -8 -7 -7 -7 -6 ------------ Run | Yrd Mat Min Exi Min Mat Gar Fac Was Fac Fac Used RIF Installer . | . . . . . . . . . . . Robots Hacked 8 | . . . 4 . . . . 1 1 2 Non-combat 6 | . . . 3 . . . . . 1 2 Combat 2 | . . . 1 . . . . 1 . . Robot Hacks Applied 11 | . . . 4 . . . . 1 2 4 parse_system 6 | . . . 4 . . . . 1 . 1 no_distress 2 | . . . . . . . . . 1 1 find_fabricator 2 | . . . . . . . . . 1 1 find_recycling 1 | . . . . . . . . . . 1 Relay Couplers Released 8 | . . . . . . 8 . . . . Machine Destruction 8 | . . . . . . 8 . . . . Fabnet Peak Effective % . | . . . . . . . . . . . Robots Rewired . | . . . . . . . . . . . Allies Hacked . | . . . . . . . . . . . Hacks Repelled . | . . . . . . . . . . . Allies | -11 -10 -10 -10 -9 -8 -8 -7 -7 -7 -6 -------- Run | Yrd Mat Min Exi Min Mat Gar Fac Was Fac Fac Total Allies 2 | . . . . 2 . . . . . . Largest Group 2 | . . . . 2 2 . . . . . Highest-Rated Group 45 | . . . . 45 45 . . . . . Highest-Rated Ally 31 | . . . . 31 31 . . . . . Initial Warlord ECA Mod 1 | . . . . . . . 1 1 1 . Total Orders . | . . . . . . . . . . . Ally Attacks 10 | . . . . 7 3 . . . . . Total Damage 257 | . . . . 216 41 . . . . . Kills 4 | . . . . 3 1 . . . . . Allies Corrupted . | . . . . . . . . . . . Allies Melted . | . . . . . . . . . . . Intel | -11 -10 -10 -10 -9 -8 -8 -7 -7 -7 -6 ------- Run | Yrd Mat Min Exi Min Mat Gar Fac Was Fac Fac Active Infowar (turns) 4703 | . 222 711 319 656 452 41 687 95 899 621 Optics 1520 | . . . . . . . . . 899 621 Sensors 758 | . . 4 . . 44 23 687 . . . Terrain 2324 | . 222 707 319 656 420 . . . . . Cloaking 113 | . . . . . . 18 . 95 . . Robot Analysis Total . | . . . . . . . . . . . Derelict Logs Recovered 4 | . . 2 . 2 . . . . . . Drone Launches . | . . . . . . . . . . . Drone Recoveries . | . . . . . . . . . . . Exploration | -11 -10 -10 -10 -9 -8 -8 -7 -7 -7 -6 ------------- Run | Yrd Mat Min Exi Min Mat Gar Fac Was Fac Fac Turns Passed 7517 | 156 683 712 319 656 564 1150 1513 220 923 621 Spaces Moved 4166 | 74 432 504 257 319 252 430 802 170 573 353 Core 76 | 15 . . . . . 50 . . . 11 Treads . | . . . . . . . . . . . Legs 3938 | 59 432 504 257 319 252 331 699 170 573 342 Wheels . | . . . . . . . . . . . Hover 152 | . . . . . . 49 103 . . . Flight . | . . . . . . . . . . . Fastest Speed 50 | 50 120 120 120 120 120 116 120 120 120 50 Average Speed 138 | 105 120 120 120 182 171 186 129 121 129 134 Slowest Speed 500 | 120 120 120 120 190 330 500 190 123 130 200 Overloaded Moves . | . . . . . . . . . . . Propulsion Burnouts . | . . . . . . . . . . . Robots Hopped . | . . . . . . . . . . . Potential Cave-ins . | . . . . . . . . . . . Cave-ins Triggered . | . . . . . . . . . . . Exploration Rate (%) 42 | 3 77 74 64 65 20 53 14 76 15 8 Regions Visited 10 Branch Regions 3 Pre-discovered Areas 1 | . . 1 . . . . . . . . Known Exits Taken 1 | . . . . . 1 . . . . . Unknown Exits Taken 6 | 1 1 1 1 1 . . . . 1 . Scrap Searched 4 | . . 1 . 3 . . . . . . Spaces Dug . | . . . . . . . . . . . Terrain Destroyed 133 | . 37 6 . . . 7 17 . . 66 Melee . | . . . . . . . . . . . Projectile . | . . . . . . . . . . . AOE 133 | . 37 6 . . . 7 17 . . 66 Terrain Rammed . | . . . . . . . . . . . Walls Destroyed . | . . . . . . . . . . . Machines Disabled . | . . . . . . . . . . . Actions | -11 -10 -10 -10 -9 -8 -8 -7 -7 -7 -6 --------- Run | Yrd Mat Min Exi Min Mat Gar Fac Was Fac Fac Total 5481 | 107 519 559 267 391 361 682 1256 178 724 437 Wait 790 | . 22 14 . 67 72 101 388 . 109 17 Move 4158 | 73 431 503 256 318 252 429 802 169 572 353 Hop . | . . . . . . . . . . . Pick Up 62 | 6 9 5 1 3 5 19 9 . 4 1 Fast Attach 29 | 1 . . . . 7 5 5 1 7 3 Attach 37 | 5 1 2 1 1 2 16 4 . 2 3 Detach 7 | . . . 1 . 1 2 2 . . 1 Swap 49 | . 2 3 1 1 6 10 10 5 5 6 Drop 42 | . 1 5 3 . 6 5 15 1 4 2 Fire 283 | 22 53 27 . 1 10 77 21 2 21 49 Melee 4 | . . . 4 . . . . . . . Ram 1 | . . . . . . 1 . . . . Kick 2 | . . . . . . . . . . 2 Crush . | . . . . . . . . . . . Escape Stasis 17 | . . . . . . 17 . . . . Rewire . | . . . . . . . . . . . Trap . | . . . . . . . . . . . Miscellaneous . | . . . . . . . . . . . Route ------- -11/Scrapyard -10/Materials (discovered 3 exits: [*Mat] / [*Min x2]) -10/Mines (discovered 3 exits: [*Mat] / *Exi / [*Sub]) -10/Exiles -9/Mines (discovered 2 exits: *Mat x2) -8/Materials (discovered 3 exits: Sto x2 / Gar) -8/Garrison -7/Factory -7/Waste -7/Factory -6/Factory History --------- Turn | Location | Event 11 | -11/Scrapyard | Discovered new exit (range 16) 157 | -11/Scrapyard | Entered Materials 310 | -10/Materials | Build established: Mutant 392 | -10/Materials | Discovered new exit (range 14) 631 | -10/Materials | Discovered new exit (range 13) 819 | -10/Materials | Discovered new exit (range 15) 840 | -10/Materials | Entered Mines 992 | -10/Mines | Learned location of Zion (-6) 1214 | -10/Mines | Found a damaged Exp. Sensor Array with a note attached 1217 | -10/Mines | Found Prototype Device 1219 | -10/Mines | Identified Exp. Sensor Array 1274 | -10/Mines | Discovered new exit (range 11) 1282 | -10/Mines | Discovered new exit (range 6) 1337 | -10/Mines | Received a Rocket Launcher from a helpful Derelict 1514 | -10/Mines | Found a Scrap Suit stashed away for nefarious purposes 1517 | -10/Mines | Found Scrap Suit 1539 | -10/Mines | Found a hidden stash of uninstalled traps 1547 | -10/Mines | Deemed a non-threat by the Exiles lab entrance 1547 | -10/Mines | Discovered new exit (range 5) 1552 | -10/Mines | Entered Exiles 1584 | -10/Exiles | Met 8R-AWN 1604 | -10/Exiles | Met EX-HEX 1661 | -10/Exiles | Met EX-BIN 1677 | -10/Exiles | Aligned with FarCom system 1678 | -10/Exiles | Given EX-Vault access code 1707 | -10/Exiles | Opened EX-Vault 1714 | -10/Exiles | Found Cloak of Protection 1739 | -10/Exiles | Warned to stay clear of 0b10 Research branches 1774 | -10/Exiles | Met EX-DEC 1856 | -10/Exiles | Discovered new exit (range 14) 1871 | -10/Exiles | Left Exiles lab with Cloak of Protection 1871 | -10/Exiles | Entered Mines 1905 | -9/Mines | Learned Materials garrison access intel 1907 | -9/Mines | Met a Derelict bent on vengeance 2003 | -9/Mines | Discovered new exit (range 8) 2214 | -9/Mines | Build established: Skirmisher 2477 | -9/Mines | Discovered new exit (range 6) 2527 | -9/Mines | Entered Materials 2527 | -8/Materials | Accompanied by 2 allies 2527 | -8/Materials | Evolved 4 slots: Propulsion x2, Utility x2 2528 | -8/Materials | Identified exit to Storage 2529 | -8/Materials | Loaded intel: 1 garrison access location 2532 | -8/Materials | Led the pair of lost Derelicts to an unsafe place 3091 | -8/Materials | Identified exit to Garrison 3091 | -8/Materials | Entered Garrison 3153 | -8/Garrison | Garrison Relay disabled 3325 | -8/Garrison | Triggered checkpoint 3333 | -8/Garrison | Triggered checkpoint 3370 | -8/Garrison | Lost 3 parts (1n2u) 3424 | -8/Garrison | Build established: Mutant 3663 | -8/Garrison | Discovered new exit (range 10) 3805 | -8/Garrison | System corruption reached 10% 3837 | -8/Garrison | Core integrity fell below 50% 3874 | -8/Garrison | Lost 10 parts (1p2n2u5w) 4063 | -8/Garrison | Core integrity fell below 20% 4111 | -8/Garrison | Lost 3 parts (2n1w) 4167 | -8/Garrison | System corruption reached 30% 4197 | -8/Garrison | Garrison Relay disabled 4241 | -8/Garrison | Entered Factory 4241 | -7/Factory | Evolved 2 slots: Power x1, Utility x1 4763 | -7/Factory | Build established: Scavenger-Skirmisher 5274 | -7/Factory | Build established: Scavenger-Mutant 5754 | -7/Factory | Sucked down chute 5754 | -7/Factory | Entered Waste 5769 | -7/Waste | EMP discharged 5774 | -7/Waste | Spotted C-40 Crusher 5779 | -7/Waste | Spotted C-40 Crusher 5811 | -7/Waste | Spotted C-40 Crusher 5813 | -7/Waste | Spotted C-40 Crusher 5869 | -7/Waste | EMP discharged 5869 | -7/Waste | System corruption reached 10% 5877 | -7/Waste | Crushed by Compactor (1 part destroyed, 1 dropped) 5878 | -7/Waste | Crushed by Compactor (1 part destroyed, 1 dropped) 5881 | -7/Waste | Crushed by Compactor (1 part destroyed, 2 dropped) 5885 | -7/Waste | Spotted C-40 Crusher 5912 | -7/Waste | Lost 3 parts (1n1u1w) 5917 | -7/Waste | Spotted C-40 Crusher 5956 | -7/Waste | Discovered new exit (range 15) 5969 | -7/Waste | EMP discharged 5974 | -7/Waste | Entered Factory 6181 | -7/Factory | Build established: Mutant 6469 | -7/Factory | Discovered new exit (range 11) 6897 | -7/Factory | Entered another Factory area 6897 | -6/Factory | Evolved 2 slots: Utility x1, Weapon x1 7344 | -6/Factory | Build established: Skirmisher 7439 | -6/Factory | Lost 3 parts (2p1w) 7508 | -6/Factory | Core integrity fell below 50% 7514 | -6/Factory | Core integrity fell below 20% 7518 | -6/Factory | Destroyed by S-27 Virus with Autogun Last Messages --------------- K-01 Serf collects debris. Mni. Grenade Launcher destroyed. Destroyed Mni. Grenade Launcher. Destroyed VTOL Module. Destroyed Lgt. Ion Engine. H-61 Shepherd destroyed. U-05 Engineer builds a Door. K-01 Serf collects debris. System corrupted: Matter fused (-5). Penetrated by Slug. Slug penetrates K-01 Serf. K-01 Serf destroyed. Slug penetrates Earth. Acquired 7 matter. U-05 Engineer lays Concrete. Slug penetrates Wall. Penetrated by Slug. U-05 Engineer lays Concrete. K-01 Serf collects debris. U-05 Engineer lays Concrete. Map ----- +----------------------------------------------------+ | ??????????????????? ????"" # #?# | | ??????????????????? ?"" # """"""""" #?# | | ???????????????????[[ """ + #?# | | ???????????????????[* """ """"""""" ??# | | ???????????????????? """ ????# | | ???????????????????? """"""""?????# | | ????????????????????"" "" # ??????# | | ????????????????????"" "" # ########## | | ??????????????### """ """ | | ?????????????? """ "" | | ????????????? ^^ | | ????????????? ^ | | ???????????? % u | | ???????????? | | ????????????????# %R h | | ??????????????######k#### #+ %##/##;#####+### | | ??????????????# h | | ??????????????# # % | | ??????????????# # # | | ??????????????? # | | ????????????????"""" # # | | ??????????????? """" R # """" "" | | ??????????????? """" # """ "" | | ??????????????? """" # """ "" | | ??????????????# """" % # """" "" | | ??????????????# """" ] @ ; ! # """" "" | | ??????????????# """" < ; # """" "" | | ??????????????# ; s =! # | | ??????????????###########;#;; k ss ;####+#### | | ????????????????????????# # ;; #####??# #??? | | ????????????????????????# ## # % ##??????# #?## | | ????????????????????????# #### # #??????# #? | | ????????????????????????# #??### T #??????# # | | ??????????????????w????? ???? "" #???#### # | | ???????????????????????? T#???## ;#??# + | | ????????????????????????###????# ##??# # | | ???????????????????????????????### ###???# # | | ?????????????????????????????????# #?????# #? " | | ????????????????????????o????????#+#?????# #? " | | ?????????????????????????????????????????# #### | | ?????????????????????????????????????????# | | ?????????????????????????????????????????# ####### | | ?????????????????????????????????????????# #?????? | | ?????????????????????????????????????????+ #?????? | | ?????????????????????????????????????????# #?????? | | ?????????????????????????????????????????# #?????? | | ?????????????????????????????????????????# #?????? | | ?????????????????????????????????????????# #?????? | | ?????????????????????????????????????????# #?????? | | ????????????????????????????????????????? ^?????? | +----------------------------------------------------+ Best States ------------- Heat Dissipation 51 Energy Generation 29 Energy Capacity 500 Matter Stores 300 Matter Capacity 300 Sight Range 20 Robot Scan Range 20 Terrain Scan Range 16 Terrain Scan Density 10 Cloak Strength 5 Base Temperature (-) 100 Core Shielding 30 Propulsion Shielding 33 Weapon Cycling 15 Evasion (%) 55 Target Analysis 5 Authchip Count 2 Item Schematics ----------------- None Robot Schematics ------------------ None Fabricated ------------ Nothing Repaired ---------- Nothing Studied --------- None Alien Tech Used ----------------- None Achievements -------------- I Have A Map? Challenges ------------ None Game ------ Seed CobblerMakeshiftPlating Manual? 0 Play Time 01:38:47 Cumulative 31.2 hours Start 2026.02.10 @ 20:54:51 End 2026.03.09 @ 19:33:14 Sessions 6 Manual Loads 0 Difficulty Rogue Special Mode None Game No. 29 Rogue 29 Adventurer 0 Explorer 0 Win Type - Total 0 Types 0/0/0/0/0/0/0/0/0/0 Lore% 16 Gallery% 28 Achievement% 21 Wizard Run 0 Options --------- Layout 1 ASCII 0 Keyboard 0 Movement Mouse Keybinds 0 Fullscreen 1 Font 16/SmallcapsGlow Map View 55x38 Zoom Use 0% Tactical HUD 0 Map Filters NONE Filters NONE Steam 1 RUN: bd7246a2-7e40-42d3-b4a0-b20c1215cbd5